[Event "December 19 Early 2023"]
[Site "https://www.chess.com"]
[Date "2023.12.19"]
[Round "1"]
[White "Balint, Vilmos"]
[Black "Harshavardhan G B"]
[Result "0-1"]
[Board "110"]
[TimeControl "180+1"]
[WhiteFideId "718050"]
[BlackFideId "25059009"]
[WhiteElo "2139"]
[BlackElo "2290"]
[WhiteTeam "HUN"]
[BlackTeam "IND"]
[WhiteClock "0:02:11"]
[BlackClock "0:02:00"]

1. e4 {[%clk 0:03:00]}  e5 {[%clk 0:02:59]} 2. f4 {[%clk 0:02:55]}  Bc5 {[%clk 0:02:57]} 3. Nf3 {[%clk 0:02:55]}  d6 {[%clk 0:02:56]} 4. Bc4 {[%clk 0:02:55]}  Nf6 {[%clk 0:02:55]} 5. Qe2 {[%clk 0:02:55]}  Nc6 {[%clk 0:02:54]} 6. fxe5 {[%clk 0:02:54]}  dxe5 {[%clk 0:02:53]} 7. Bxf7+ {[%clk 0:02:54]}  Kxf7 {[%clk 0:02:46]} 8. Qc4+ {[%clk 0:02:54]}  Ke8 {[%clk 0:02:25]} 9. Qxc5 {[%clk 0:02:54]}  Nxe4 {[%clk 0:02:25]} 10. Qe3 {[%clk 0:02:55]}  Nd6 {[%clk 0:02:22]} 11. Nxe5 {[%clk 0:02:54]}  Nf5 {[%clk 0:02:10]} 12. Qe4 {[%clk 0:02:27]}  Qe7 {[%clk 0:02:04]} 13. d4 {[%clk 0:02:23]}  Nfxd4 {[%clk 0:02:01]} 14. Bf4 {[%clk 0:02:23]}  Bf5 {[%clk 0:02:00]} 15. Qe3 {[%clk 0:02:11]}  Nxc2+ {[%clk 0:02:00]} 0-1

[Event "December 19 Early 2023"]
[Site "https://www.chess.com"]
[Date "2023.12.19"]
[Round "1"]
[White "Krysa, Leandro"]
[Black "Buchenau, Frank"]
[Result "1-0"]
[Board "113"]
[TimeControl "180+1"]
[WhiteFideId "116807"]
[BlackFideId "4604350"]
[WhiteElo "2495"]
[BlackElo "2157"]
[WhiteTeam "ARG"]
[BlackTeam "GER"]
[WhiteClock "0:00:22"]
[BlackClock "0:00:00"]

1. e4 {[%clk 0:03:00]}  e6 {[%clk 0:03:00]} 2. d4 {[%clk 0:03:00]}  d5 {[%clk 0:03:00]} 3. exd5 {[%clk 0:03:01]}  exd5 {[%clk 0:03:00]} 4. c4 {[%clk 0:03:01]}  Nf6 {[%clk 0:02:59]} 5. Nc3 {[%clk 0:03:01]}  Be7 {[%clk 0:02:57]} 6. Bd3 {[%clk 0:02:59]}  dxc4 {[%clk 0:02:56]} 7. Bxc4 {[%clk 0:02:59]}  O-O {[%clk 0:02:56]} 8. Nge2 {[%clk 0:03:00]}  Nbd7 {[%clk 0:02:56]} 9. O-O {[%clk 0:02:58]}  Nb6 {[%clk 0:02:56]} 10. Bb3 {[%clk 0:02:58]}  c6 {[%clk 0:02:57]} 11. Bg5 {[%clk 0:02:47]}  Nfd5 {[%clk 0:02:51]} 12. Bxe7 {[%clk 0:02:46]}  Qxe7 {[%clk 0:02:44]} 13. Nxd5 {[%clk 0:02:39]}  Nxd5 {[%clk 0:02:41]} 14. Bxd5 {[%clk 0:02:39]}  cxd5 {[%clk 0:02:41]} 15. Qd2 {[%clk 0:02:38]}  Bf5 {[%clk 0:02:28]} 16. Rfe1 {[%clk 0:02:37]}  Rac8 {[%clk 0:02:20]} 17. Nc3 {[%clk 0:02:34]}  Qd7 {[%clk 0:02:05]} 18. Re5 {[%clk 0:02:34]}  Be6 {[%clk 0:01:49]} 19. Rae1 {[%clk 0:02:34]}  Rc4 {[%clk 0:01:36]} 20. h4 {[%clk 0:02:23]}  Rfc8 {[%clk 0:01:33]} 21. h5 {[%clk 0:02:22]}  h6 {[%clk 0:01:32]} 22. Qd3 {[%clk 0:02:11]}  b5 {[%clk 0:01:24]} 23. a3 {[%clk 0:01:57]}  a5 {[%clk 0:01:24]} 24. R1e3 {[%clk 0:01:53]}  b4 {[%clk 0:01:23]} 25. axb4 {[%clk 0:01:52]}  axb4 {[%clk 0:01:24]} 26. Ne2 {[%clk 0:01:48]}  Rc2 {[%clk 0:01:22]} 27. b3 {[%clk 0:01:25]}  Ra2 {[%clk 0:01:02]} 28. Nf4 {[%clk 0:01:20]}  Rc1+ {[%clk 0:00:52]} 29. Kh2 {[%clk 0:01:12]}  Rxf2 {[%clk 0:00:47]} 30. Nxe6 {[%clk 0:01:07]}  fxe6 {[%clk 0:00:46]} 31. Rxe6 {[%clk 0:00:58]}  Qc7+ {[%clk 0:00:26]} 32. R3e5 {[%clk 0:00:52]}  Rf8 {[%clk 0:00:17]} 33. Re7 {[%clk 0:00:42]}  Qd6 {[%clk 0:00:12]} 34. Re6 {[%clk 0:00:28]}  Qd8 {[%clk 0:00:12]} 35. Qg3 {[%clk 0:00:26]}  Qd7 {[%clk 0:00:00]} 36. Re7 {[%clk 0:00:22]} 1-0

[Event "December 19 Early 2023"]
[Site "https://www.chess.com"]
[Date "2023.12.19"]
[Round "1"]
[White "Dobrikov, Marco"]
[Black "Balla, Tamas-Kristof"]
[Result "0-1"]
[Board "115"]
[TimeControl "180+1"]
[WhiteFideId "12950378"]
[BlackFideId "1208497"]
[WhiteElo "2394"]
[BlackElo "2306"]
[WhiteTeam "GER"]
[BlackTeam "ROU"]
[WhiteClock "0:00:29"]
[BlackClock "0:00:17"]

1. c4 {[%clk 0:03:00]}  c5 {[%clk 0:02:59]} 2. Nc3 {[%clk 0:03:00]}  Nc6 {[%clk 0:02:59]} 3. g3 {[%clk 0:03:00]}  g6 {[%clk 0:02:57]} 4. Bg2 {[%clk 0:03:00]}  Bg7 {[%clk 0:02:58]} 5. e3 {[%clk 0:03:00]}  e6 {[%clk 0:02:56]} 6. Nge2 {[%clk 0:03:00]}  Nge7 {[%clk 0:02:56]} 7. O-O {[%clk 0:02:59]}  O-O {[%clk 0:02:55]} 8. b3 {[%clk 0:02:59]}  d6 {[%clk 0:02:51]} 9. Bb2 {[%clk 0:02:59]}  b6 {[%clk 0:02:52]} 10. d4 {[%clk 0:02:59]}  Bb7 {[%clk 0:02:46]} 11. d5 {[%clk 0:02:56]}  exd5 {[%clk 0:02:41]} 12. cxd5 {[%clk 0:02:56]}  Nb8 {[%clk 0:02:36]} 13. e4 {[%clk 0:02:57]}  Nd7 {[%clk 0:02:36]} 14. Na4 {[%clk 0:02:57]}  Nf6 {[%clk 0:02:24]} 15. f4 {[%clk 0:02:56]}  Re8 {[%clk 0:02:14]} 16. Nac3 {[%clk 0:02:47]}  Rc8 {[%clk 0:02:00]} 17. Qd2 {[%clk 0:02:46]}  c4 {[%clk 0:01:57]} 18. b4 {[%clk 0:02:46]}  a6 {[%clk 0:01:54]} 19. Nd4 {[%clk 0:02:44]}  b5 {[%clk 0:01:52]} 20. a4 {[%clk 0:02:37]}  bxa4 {[%clk 0:01:45]} 21. Rxa4 {[%clk 0:02:38]}  Qb6 {[%clk 0:01:45]} 22. Kh1 {[%clk 0:02:37]}  Ng4 {[%clk 0:01:41]} 23. Nce2 {[%clk 0:02:34]}  f5 {[%clk 0:01:06]} 24. exf5 {[%clk 0:02:32]}  Nxf5 {[%clk 0:01:05]} 25. Nxf5 {[%clk 0:02:30]}  Nf2+ {[%clk 0:01:02]} 26. Rxf2 {[%clk 0:02:29]}  Qxf2 {[%clk 0:01:03]} 27. Nh6+ {[%clk 0:01:52]}  Bxh6 {[%clk 0:00:48]} 28. Qc3 {[%clk 0:01:53]}  Rxe2 {[%clk 0:00:21]} 29. Qh8+ {[%clk 0:01:51]}  Kf7 {[%clk 0:00:21]} 30. Qxh7+ {[%clk 0:01:44]}  Ke8 {[%clk 0:00:20]} 31. Qxg6+ {[%clk 0:01:43]}  Kd8 {[%clk 0:00:20]} 32. Qxd6+ {[%clk 0:01:39]}  Ke8 {[%clk 0:00:20]} 33. Qg6+ {[%clk 0:01:26]}  Kd7 {[%clk 0:00:20]} 34. Bh3+ {[%clk 0:01:16]}  Kc7 {[%clk 0:00:20]} 35. Be5+ {[%clk 0:00:47]}  Rxe5 {[%clk 0:00:19]} 36. Qf7+ {[%clk 0:00:33]}  Kb8 {[%clk 0:00:18]} 37. fxe5 {[%clk 0:00:29]}  Qxf7 {[%clk 0:00:17]} 0-1

[Event "December 19 Early 2023"]
[Site "https://www.chess.com"]
[Date "2023.12.19"]
[Round "1"]
[White "Stillger, Bernhard"]
[Black "Yaran, Siar"]
[Result "0-1"]
[Board "116"]
[TimeControl "180+1"]
[WhiteFideId "4610768"]
[BlackFideId "6323006"]
[WhiteElo "2252"]
[BlackElo "2191"]
[WhiteTeam "GER"]
[BlackTeam "TUR"]
[WhiteClock "0:00:14"]
[BlackClock "0:00:16"]

1. Nf3 {[%clk 0:03:00]}  Nf6 {[%clk 0:02:59]} 2. g3 {[%clk 0:03:00]}  e6 {[%clk 0:02:59]} 3. Bg2 {[%clk 0:03:00]}  d5 {[%clk 0:02:59]} 4. O-O {[%clk 0:03:00]}  Be7 {[%clk 0:02:59]} 5. c4 {[%clk 0:02:59]}  O-O {[%clk 0:02:59]} 6. d4 {[%clk 0:02:59]}  dxc4 {[%clk 0:02:59]} 7. Qa4 {[%clk 0:02:58]}  a6 {[%clk 0:02:58]} 8. Qxc4 {[%clk 0:02:59]}  b5 {[%clk 0:02:58]} 9. Qc2 {[%clk 0:02:59]}  Bb7 {[%clk 0:02:58]} 10. Bg5 {[%clk 0:03:00]}  Nbd7 {[%clk 0:02:51]} 11. Bxf6 {[%clk 0:02:59]}  Nxf6 {[%clk 0:02:51]} 12. Nbd2 {[%clk 0:03:00]}  Rc8 {[%clk 0:02:43]} 13. Nb3 {[%clk 0:03:00]}  Be4 {[%clk 0:02:42]} 14. Qc1 {[%clk 0:02:44]}  c5 {[%clk 0:02:20]} 15. dxc5 {[%clk 0:02:39]}  Bd5 {[%clk 0:02:19]} 16. Rd1 {[%clk 0:02:30]}  Qc7 {[%clk 0:02:11]} 17. Qf4 {[%clk 0:02:15]}  Bxc5 {[%clk 0:02:02]} 18. Qxc7 {[%clk 0:02:03]}  Rxc7 {[%clk 0:01:59]} 19. Nxc5 {[%clk 0:02:03]}  Rxc5 {[%clk 0:01:59]} 20. Nd4 {[%clk 0:01:58]}  Rfc8 {[%clk 0:01:56]} 21. a4 {[%clk 0:01:44]}  b4 {[%clk 0:01:38]} 22. f3 {[%clk 0:01:24]}  e5 {[%clk 0:01:20]} 23. Nf5 {[%clk 0:01:23]}  Kf8 {[%clk 0:01:19]} 24. Rd2 {[%clk 0:01:04]}  g6 {[%clk 0:01:14]} 25. Ne3 {[%clk 0:00:54]}  Be6 {[%clk 0:01:14]} 26. Kf2 {[%clk 0:00:47]}  Ke7 {[%clk 0:01:13]} 27. f4 {[%clk 0:00:44]}  a5 {[%clk 0:01:04]} 28. fxe5 {[%clk 0:00:37]}  Rxe5 {[%clk 0:01:02]} 29. Rd4 {[%clk 0:00:37]}  h5 {[%clk 0:00:47]} 30. Bf3 {[%clk 0:00:37]}  Bb3 {[%clk 0:00:38]} 31. Rd3 {[%clk 0:00:35]}  Be6 {[%clk 0:00:38]} 32. Rd4 {[%clk 0:00:35]}  Rcc5 {[%clk 0:00:38]} 33. Rd3 {[%clk 0:00:34]}  Rc7 {[%clk 0:00:35]} 34. Rad1 {[%clk 0:00:34]}  Rec5 {[%clk 0:00:32]} 35. R1d2 {[%clk 0:00:33]}  Bd7 {[%clk 0:00:28]} 36. Nd5+ {[%clk 0:00:31]}  Nxd5 {[%clk 0:00:27]} 37. Rxd5 {[%clk 0:00:30]}  Bxa4 {[%clk 0:00:26]} 38. Rd8 {[%clk 0:00:28]}  Ra7 {[%clk 0:00:23]} 39. Rb8 {[%clk 0:00:27]}  Bd7 {[%clk 0:00:21]} 40. Rd4 {[%clk 0:00:24]}  Be6 {[%clk 0:00:21]} 41. Rdd8 {[%clk 0:00:23]}  Rc2 {[%clk 0:00:20]} 42. Re8+ {[%clk 0:00:22]}  Kf6 {[%clk 0:00:20]} 43. Rb6 {[%clk 0:00:21]}  Rxb2 {[%clk 0:00:18]} 44. Bd5 {[%clk 0:00:21]}  Re7 {[%clk 0:00:18]} 45. Ra8 {[%clk 0:00:20]}  Ra2 {[%clk 0:00:18]} 46. Bxe6 {[%clk 0:00:18]}  Rxe6 {[%clk 0:00:18]} 47. Rb7 {[%clk 0:00:14]}  a4 {[%clk 0:00:16]} 48. Rxb4 {[%clk 0:00:14]}  Raxe2+ {[%clk 0:00:16]} 49. Kf3 {[%clk 0:00:14]}  R6e3+ {[%clk 0:00:16]} 50. Kf4 {[%clk 0:00:14]}  g5# {[%clk 0:00:16]} 0-1

[Event "December 19 Early 2023"]
[Site "https://www.chess.com"]
[Date "2023.12.19"]
[Round "1"]
[White "Adla, Diego"]
[Black "Can, Melih Kaan"]
[Result "1-0"]
[Board "119"]
[TimeControl "180+1"]
[WhiteFideId "100072"]
[BlackFideId "6317383"]
[WhiteElo "2377"]
[BlackElo "2022"]
[WhiteTeam "ARG"]
[BlackTeam "TUR"]
[WhiteClock "0:00:15"]
[BlackClock "0:00:08"]

1. c4 {[%clk 0:03:00]}  e5 {[%clk 0:02:59]} 2. Nc3 {[%clk 0:03:00]}  Nf6 {[%clk 0:02:59]} 3. Nf3 {[%clk 0:02:58]}  Nc6 {[%clk 0:02:59]} 4. e4 {[%clk 0:02:58]}  Bb4 {[%clk 0:02:56]} 5. d3 {[%clk 0:02:58]}  O-O {[%clk 0:02:54]} 6. Be2 {[%clk 0:02:56]}  d6 {[%clk 0:02:51]} 7. O-O {[%clk 0:02:56]}  Bg4 {[%clk 0:02:51]} 8. Ne1 {[%clk 0:02:55]}  Bxe2 {[%clk 0:02:49]} 9. Qxe2 {[%clk 0:02:55]}  Nd4 {[%clk 0:02:48]} 10. Qd1 {[%clk 0:02:56]}  Qd7 {[%clk 0:02:36]} 11. Nc2 {[%clk 0:02:54]}  Bc5 {[%clk 0:02:23]} 12. Nxd4 {[%clk 0:02:46]}  Bxd4 {[%clk 0:02:22]} 13. Ne2 {[%clk 0:02:47]}  Bb6 {[%clk 0:02:22]} 14. Ng3 {[%clk 0:02:43]}  g6 {[%clk 0:02:12]} 15. Kh1 {[%clk 0:02:39]}  Ng4 {[%clk 0:02:10]} 16. Qe2 {[%clk 0:02:29]}  f5 {[%clk 0:02:06]} 17. f3 {[%clk 0:02:24]}  f4 {[%clk 0:01:57]} 18. fxg4 {[%clk 0:02:13]}  fxg3 {[%clk 0:01:58]} 19. Bh6 {[%clk 0:02:14]}  Rf2 {[%clk 0:01:54]} 20. Rxf2 {[%clk 0:01:35]}  gxf2 {[%clk 0:01:53]} 21. h3 {[%clk 0:01:36]}  Re8 {[%clk 0:01:41]} 22. Rf1 {[%clk 0:01:30]}  Qf7 {[%clk 0:01:25]} 23. b4 {[%clk 0:01:19]}  Bd4 {[%clk 0:01:18]} 24. g3 {[%clk 0:01:10]}  Re6 {[%clk 0:01:07]} 25. Kg2 {[%clk 0:01:08]}  Rf6 {[%clk 0:01:05]} 26. Bg5 {[%clk 0:00:55]}  Re6 {[%clk 0:01:04]} 27. Be3 {[%clk 0:00:54]}  Bxe3 {[%clk 0:00:55]} 28. Qxe3 {[%clk 0:00:54]}  b6 {[%clk 0:00:53]} 29. Rxf2 {[%clk 0:00:52]}  Qe7 {[%clk 0:00:53]} 30. g5 {[%clk 0:00:45]}  Qg7 {[%clk 0:00:45]} 31. c5 {[%clk 0:00:40]}  Qe7 {[%clk 0:00:36]} 32. cxb6 {[%clk 0:00:38]}  cxb6 {[%clk 0:00:24]} 33. Rc2 {[%clk 0:00:38]}  Qd7 {[%clk 0:00:20]} 34. Qc1 {[%clk 0:00:37]}  Re7 {[%clk 0:00:20]} 35. Rc8+ {[%clk 0:00:35]}  Kg7 {[%clk 0:00:20]} 36. Rc6 {[%clk 0:00:27]}  Rf7 {[%clk 0:00:15]} 37. b5 {[%clk 0:00:24]}  Qe6 {[%clk 0:00:15]} 38. Rc2 {[%clk 0:00:20]}  Qd7 {[%clk 0:00:13]} 39. a4 {[%clk 0:00:20]}  a6 {[%clk 0:00:13]} 40. Qb2 {[%clk 0:00:19]}  a5 {[%clk 0:00:12]} 41. Qc1 {[%clk 0:00:18]}  Qe7 {[%clk 0:00:11]} 42. Qe3 {[%clk 0:00:17]}  Qb7 {[%clk 0:00:09]} 43. Rc6 {[%clk 0:00:17]}  Rc7 {[%clk 0:00:08]} 44. Qxb6 {[%clk 0:00:15]}  Qxb6 {[%clk 0:00:07]} 45. Rxb6 {[%clk 0:00:15]}  Rc2+ {[%clk 0:00:08]} 46. Kf3 {[%clk 0:00:15]}  Ra2 {[%clk 0:00:09]} 47. Rxd6 {[%clk 0:00:15]}  Rxa4 {[%clk 0:00:09]} 48. Rd5 {[%clk 0:00:15]}  Rb4 {[%clk 0:00:08]} 49. b6 {[%clk 0:00:15]}  a4 {[%clk 0:00:08]} 50. Rxe5 {[%clk 0:00:14]}  Rxb6 {[%clk 0:00:08]} 51. Ra5 {[%clk 0:00:15]}  Rb4 {[%clk 0:00:08]} 52. Kf4 {[%clk 0:00:13]}  Rd4 {[%clk 0:00:07]} 53. Ke3 {[%clk 0:00:13]}  Rb4 {[%clk 0:00:07]} 54. h4 {[%clk 0:00:14]}  Kf7 {[%clk 0:00:05]} 55. Ra6 {[%clk 0:00:15]}  Kg7 {[%clk 0:00:06]} 56. Ra7+ {[%clk 0:00:14]}  Kg8 {[%clk 0:00:06]} 57. g4 {[%clk 0:00:15]}  Kf8 {[%clk 0:00:06]} 58. h5 {[%clk 0:00:15]}  Kg8 {[%clk 0:00:07]} 59. h6 {[%clk 0:00:15]}  Kf8 {[%clk 0:00:07]} 60. Rxh7 {[%clk 0:00:15]}  a3 {[%clk 0:00:07]} 61. Ra7 {[%clk 0:00:16]}  Rb3 {[%clk 0:00:08]} 62. h7 {[%clk 0:00:16]}  Rxd3+ {[%clk 0:00:07]} 63. Kxd3 {[%clk 0:00:15]}  a2 {[%clk 0:00:08]} 64. h8=Q# {[%clk 0:00:15]} 1-0

[Event "December 19 Early 2023"]
[Site "https://www.chess.com"]
[Date "2023.12.19"]
[Round "1"]
[White "Delorme, Axel"]
[Black "Bardyk, Artem"]
[Result "0-1"]
[Board "120"]
[TimeControl "180+1"]
[WhiteFideId "632023"]
[BlackFideId "34349979"]
[WhiteElo "2478"]
[BlackElo "2300"]
[WhiteTeam "FRA"]
[BlackTeam "RUS"]
[WhiteClock "0:00:05"]
[BlackClock "0:01:54"]

1. e4 {[%clk 0:03:00]}  e5 {[%clk 0:02:57]} 2. Nf3 {[%clk 0:03:00]}  Nc6 {[%clk 0:02:58]} 3. Bb5 {[%clk 0:03:00]}  Nge7 {[%clk 0:02:58]} 4. Nc3 {[%clk 0:02:56]}  Ng6 {[%clk 0:02:58]} 5. O-O {[%clk 0:02:55]}  Bc5 {[%clk 0:02:57]} 6. Na4 {[%clk 0:02:42]}  Be7 {[%clk 0:02:54]} 7. d4 {[%clk 0:02:42]}  exd4 {[%clk 0:02:53]} 8. Nxd4 {[%clk 0:02:42]}  Bf6 {[%clk 0:02:52]} 9. Nxc6 {[%clk 0:02:30]}  bxc6 {[%clk 0:02:52]} 10. Bc4 {[%clk 0:02:27]}  O-O {[%clk 0:02:49]} 11. Nc3 {[%clk 0:02:27]}  Rb8 {[%clk 0:02:48]} 12. Bb3 {[%clk 0:02:24]}  d6 {[%clk 0:02:43]} 13. f4 {[%clk 0:02:22]}  Ba6 {[%clk 0:02:38]} 14. Re1 {[%clk 0:02:17]}  Bxc3 {[%clk 0:02:26]} 15. bxc3 {[%clk 0:02:17]}  Qf6 {[%clk 0:02:26]} 16. Qd4 {[%clk 0:02:12]}  c5 {[%clk 0:02:19]} 17. Qxf6 {[%clk 0:02:12]}  gxf6 {[%clk 0:02:20]} 18. Bd5 {[%clk 0:01:29]}  Rfe8 {[%clk 0:02:15]} 19. Bd2 {[%clk 0:01:16]}  Bb7 {[%clk 0:02:11]} 20. Rab1 {[%clk 0:01:07]}  Bxd5 {[%clk 0:02:07]} 21. exd5 {[%clk 0:00:55]}  Rxe1+ {[%clk 0:02:01]} 22. Rxe1 {[%clk 0:00:54]}  Rb2 {[%clk 0:02:02]} 23. c4 {[%clk 0:00:18]}  Rxc2 {[%clk 0:01:59]} 24. Re8+ {[%clk 0:00:14]}  Kg7 {[%clk 0:01:58]} 25. Be3 {[%clk 0:00:15]}  Rxc4 {[%clk 0:01:58]} 26. g3 {[%clk 0:00:12]}  Ra4 {[%clk 0:01:57]} 27. h4 {[%clk 0:00:12]}  h5 {[%clk 0:01:54]} 28. Rc8 {[%clk 0:00:09]}  Ne7 {[%clk 0:01:53]} 29. Rxc7 {[%clk 0:00:05]}  Nxd5 {[%clk 0:01:54]} 0-1

[Event "December 19 Early 2023"]
[Site "https://www.chess.com"]
[Date "2023.12.19"]
[Round "1"]
[White "Matveeva, Olga"]
[Black "Zavgorodniy, Sergiy"]
[Result "1/2-1/2"]
[Board "122"]
[TimeControl "180+1"]
[WhiteFideId "24107018"]
[BlackFideId "14110148"]
[WhiteElo "1883"]
[BlackElo "2402"]
[WhiteTeam "RUS"]
[BlackTeam "UKR"]
[WhiteClock "0:00:46"]
[BlackClock "0:00:33"]

1. d4 {[%clk 0:03:00]}  Nf6 {[%clk 0:02:59]} 2. c4 {[%clk 0:02:59]}  d6 {[%clk 0:02:59]} 3. Nf3 {[%clk 0:02:58]}  Nbd7 {[%clk 0:03:00]} 4. g3 {[%clk 0:02:58]}  c6 {[%clk 0:03:00]} 5. Bg2 {[%clk 0:02:58]}  e5 {[%clk 0:03:00]} 6. Nc3 {[%clk 0:02:58]}  e4 {[%clk 0:03:01]} 7. Ng5 {[%clk 0:02:51]}  d5 {[%clk 0:03:01]} 8. cxd5 {[%clk 0:02:41]}  cxd5 {[%clk 0:03:02]} 9. f3 {[%clk 0:02:37]}  h6 {[%clk 0:02:58]} 10. Nh3 {[%clk 0:02:36]}  exf3 {[%clk 0:02:58]} 11. exf3 {[%clk 0:02:32]}  Bb4 {[%clk 0:02:50]} 12. O-O {[%clk 0:02:31]}  O-O {[%clk 0:02:50]} 13. Nf4 {[%clk 0:02:29]}  Bxc3 {[%clk 0:02:48]} 14. bxc3 {[%clk 0:02:30]}  Nb6 {[%clk 0:02:48]} 15. Nd3 {[%clk 0:02:24]}  Nc4 {[%clk 0:02:41]} 16. Rb1 {[%clk 0:02:20]}  Re8 {[%clk 0:02:39]} 17. Re1 {[%clk 0:02:17]}  b6 {[%clk 0:02:35]} 18. Ne5 {[%clk 0:02:13]}  Bf5 {[%clk 0:02:31]} 19. Rb4 {[%clk 0:02:04]}  Rc8 {[%clk 0:02:24]} 20. Nxc4 {[%clk 0:01:58]}  dxc4 {[%clk 0:02:23]} 21. f4 {[%clk 0:01:51]}  Rxe1+ {[%clk 0:02:13]} 22. Qxe1 {[%clk 0:01:50]}  Qd7 {[%clk 0:02:14]} 23. Ba3 {[%clk 0:01:35]}  Re8 {[%clk 0:02:08]} 24. Qf2 {[%clk 0:01:34]}  Ng4 {[%clk 0:02:02]} 25. Qd2 {[%clk 0:01:26]}  Ne3 {[%clk 0:01:36]} 26. Bf3 {[%clk 0:01:25]}  Bg4 {[%clk 0:01:22]} 27. Bxg4 {[%clk 0:01:11]}  Qxg4 {[%clk 0:01:19]} 28. Rb5 {[%clk 0:01:08]}  f6 {[%clk 0:01:10]} 29. d5 {[%clk 0:01:04]}  Nf5 {[%clk 0:01:06]} 30. d6 {[%clk 0:00:52]}  Re2 {[%clk 0:01:06]} 31. Qd5+ {[%clk 0:00:50]}  Kh8 {[%clk 0:01:04]} 32. Qxf5 {[%clk 0:00:46]}  Re1+ {[%clk 0:00:52]} 33. Kg2 {[%clk 0:00:45]}  Re2+ {[%clk 0:00:45]} 34. Kg1 {[%clk 0:00:45]}  Re1+ {[%clk 0:00:37]} 35. Kg2 {[%clk 0:00:45]}  Re2+ {[%clk 0:00:33]} 36. Kg1 {[%clk 0:00:46]} 1/2-1/2

[Event "December 19 Early 2023"]
[Site "https://www.chess.com"]
[Date "2023.12.19"]
[Round "1"]
[White "Yeritsyan, Hayk"]
[Black "Shohat, Yotam"]
[Result "0-1"]
[Board "123"]
[TimeControl "180+1"]
[WhiteFideId "13307320"]
[BlackFideId "2813955"]
[WhiteElo "2130"]
[BlackElo "2226"]
[WhiteTeam "ARM"]
[BlackTeam "ISR"]
[WhiteClock "0:00:22"]
[BlackClock "0:00:06"]

1. e4 {[%clk 0:02:58]}  c5 {[%clk 0:02:58]} 2. Nc3 {[%clk 0:02:57]}  Nc6 {[%clk 0:02:46]} 3. Bb5 {[%clk 0:02:56]}  Nd4 {[%clk 0:02:43]} 4. Nf3 {[%clk 0:02:55]}  a6 {[%clk 0:02:33]} 5. Bd3 {[%clk 0:02:52]}  Nc6 {[%clk 0:02:29]} 6. O-O {[%clk 0:02:50]}  e6 {[%clk 0:02:28]} 7. e5 {[%clk 0:02:48]}  d5 {[%clk 0:02:21]} 8. exd6 {[%clk 0:02:49]}  Bxd6 {[%clk 0:02:16]} 9. b3 {[%clk 0:02:48]}  Nf6 {[%clk 0:02:15]} 10. Ne4 {[%clk 0:02:45]}  Be7 {[%clk 0:02:05]} 11. Bb2 {[%clk 0:02:44]}  b6 {[%clk 0:01:58]} 12. Re1 {[%clk 0:02:36]}  Bb7 {[%clk 0:01:56]} 13. Qe2 {[%clk 0:02:20]}  Nd5 {[%clk 0:01:48]} 14. Bc4 {[%clk 0:01:56]}  b5 {[%clk 0:01:41]} 15. Bxd5 {[%clk 0:01:56]}  Qxd5 {[%clk 0:01:42]} 16. d3 {[%clk 0:01:54]}  Nd4 {[%clk 0:01:33]} 17. Nxd4 {[%clk 0:01:48]}  cxd4 {[%clk 0:01:34]} 18. f3 {[%clk 0:01:40]}  O-O {[%clk 0:01:34]} 19. a4 {[%clk 0:01:39]}  Rac8 {[%clk 0:01:18]} 20. axb5 {[%clk 0:01:38]}  axb5 {[%clk 0:01:19]} 21. Qf2 {[%clk 0:01:34]}  e5 {[%clk 0:01:04]} 22. Ng3 {[%clk 0:01:32]}  Bg5 {[%clk 0:00:53]} 23. Nf5 {[%clk 0:01:29]}  g6 {[%clk 0:00:47]} 24. Qg3 {[%clk 0:01:19]}  Qd8 {[%clk 0:00:11]} 25. Rxe5 {[%clk 0:01:08]}  Rxc2 {[%clk 0:00:09]} 26. Bxd4 {[%clk 0:01:02]}  gxf5 {[%clk 0:00:09]} 27. Be3 {[%clk 0:00:43]}  f6 {[%clk 0:00:09]} 28. Rxf5 {[%clk 0:00:35]}  Kh8 {[%clk 0:00:09]} 29. Bxg5 {[%clk 0:00:30]}  Qd4+ {[%clk 0:00:07]} 30. Be3 {[%clk 0:00:23]}  Qxa1+ {[%clk 0:00:06]} 31. Qe1 {[%clk 0:00:22]}  Qxe1# {[%clk 0:00:06]} 0-1

[Event "December 19 Early 2023"]
[Site "https://www.chess.com"]
[Date "2023.12.19"]
[Round "1"]
[White "Cieslak, Patryk"]
[Black "Igel2023"]
[Result "1-0"]
[Board "127"]
[TimeControl "180+1"]
[WhiteFideId "21078882"]
[WhiteElo "2149"]
[BlackElo "2389"]
[WhiteTeam "POL"]
[WhiteClock "0:00:04"]
[BlackClock "0:00:00"]

1. e4 {[%clk 0:03:00]}  e6 {[%clk 0:02:59]} 2. d4 {[%clk 0:03:00]}  d5 {[%clk 0:03:00]} 3. Nd2 {[%clk 0:03:00]}  dxe4 {[%clk 0:03:00]} 4. Nxe4 {[%clk 0:03:01]}  Nd7 {[%clk 0:03:00]} 5. Nf3 {[%clk 0:03:01]}  Ngf6 {[%clk 0:03:00]} 6. Bd3 {[%clk 0:03:00]}  Nxe4 {[%clk 0:02:58]} 7. Bxe4 {[%clk 0:03:01]}  Nf6 {[%clk 0:02:59]} 8. Bd3 {[%clk 0:03:01]}  b6 {[%clk 0:02:58]} 9. Qe2 {[%clk 0:03:00]}  Bb7 {[%clk 0:02:58]} 10. Bf4 {[%clk 0:02:56]}  Bd6 {[%clk 0:02:54]} 11. Bg5 {[%clk 0:02:54]}  Be7 {[%clk 0:02:54]} 12. O-O-O {[%clk 0:02:46]}  O-O {[%clk 0:02:53]} 13. Kb1 {[%clk 0:02:43]}  Qd6 {[%clk 0:02:37]} 14. Rhg1 {[%clk 0:02:19]}  c5 {[%clk 0:02:34]} 15. Bh4 {[%clk 0:02:02]}  cxd4 {[%clk 0:02:30]} 16. Bg3 {[%clk 0:02:01]}  Qc5 {[%clk 0:02:19]} 17. Nxd4 {[%clk 0:01:52]}  a6 {[%clk 0:02:02]} 18. Nb3 {[%clk 0:01:42]}  Qc8 {[%clk 0:01:42]} 19. Be5 {[%clk 0:01:39]}  b5 {[%clk 0:01:39]} 20. g4 {[%clk 0:01:37]}  Nd7 {[%clk 0:01:26]} 21. Bxh7+ {[%clk 0:01:34]}  Kxh7 {[%clk 0:01:23]} 22. Qd3+ {[%clk 0:01:34]}  Kg8 {[%clk 0:01:01]} 23. Qxd7 {[%clk 0:01:33]}  Bh4 {[%clk 0:00:49]} 24. Qd4 {[%clk 0:01:04]}  f6 {[%clk 0:00:45]} 25. Bd6 {[%clk 0:01:03]}  Rd8 {[%clk 0:00:43]} 26. Nc5 {[%clk 0:01:01]}  e5 {[%clk 0:00:33]} 27. Qe3 {[%clk 0:00:55]}  Bg5 {[%clk 0:00:31]} 28. Qb3+ {[%clk 0:00:52]}  Kh7 {[%clk 0:00:28]} 29. Rg3 {[%clk 0:00:50]}  Qc6 {[%clk 0:00:17]} 30. Nxb7 {[%clk 0:00:47]}  Qxb7 {[%clk 0:00:16]} 31. Rh3+ {[%clk 0:00:43]}  Kg6 {[%clk 0:00:16]} 32. Qd3+ {[%clk 0:00:26]}  e4 {[%clk 0:00:12]} 33. Qe2 {[%clk 0:00:22]}  Rd7 {[%clk 0:00:11]} 34. f4 {[%clk 0:00:20]}  exf3 {[%clk 0:00:09]} 35. Qd3+ {[%clk 0:00:18]}  Kf7 {[%clk 0:00:08]} 36. Qb3+ {[%clk 0:00:18]}  Kg6 {[%clk 0:00:08]} 37. Rxf3 {[%clk 0:00:19]}  Rad8 {[%clk 0:00:07]} 38. Qd3+ {[%clk 0:00:19]}  Kf7 {[%clk 0:00:07]} 39. Qb3+ {[%clk 0:00:20]}  Kg6 {[%clk 0:00:08]} 40. Rfd3 {[%clk 0:00:09]}  Qc6 {[%clk 0:00:07]} 41. Bg3 {[%clk 0:00:08]}  Rxd3 {[%clk 0:00:06]} 42. cxd3 {[%clk 0:00:08]}  Qf3 {[%clk 0:00:05]} 43. d4 {[%clk 0:00:05]}  Qe4+ {[%clk 0:00:00]} 44. Qc2 {[%clk 0:00:04]} 1-0